Cogmind - Beta 17 @@@ ROGUE MODE // 2026.07.16 @ 07:34:28 // Winter2019/RPGLIKE Player: Gallgagger Result: Self-destructed Performance ------------- Evolutions (1) 500 Regions Visited (6) 1200 Robots Destroyed (0) 0 Value Destroyed (0) 0 Prototype IDs (25) 500 Alien Tech Used (0) 0 Bonus (507) 507 TOTAL SCORE: 2707 Bonus ------- Pacifist 200 Follower Combat Kills 7 Aligned with FarCom 300 Cogmind --------- Core Integrity 248/600 Matter 290/300 Energy 100/100 System Corruption 0% Temperature Cool (0) Movement Flying (40) Location -8/Mines Parts ------- > --- POWER (1) -------- (None) > --- PROPULSION (2) --- Flight Unit > --- UTILITY (1) ------ Thief Drone Bay (3/3) > --- WEAPON (1) ------- Makeshift Shrapnel Gun > --- INVENTORY (3) ---- Proton Bomb Trap Proton Bomb Trap Peak State ------------ > --- POWER ------------ (None) > --- PROPULSION ------- Flight Unit Flight Unit > --- UTILITY ---------- Thief Drone Bay > --- WEAPON ----------- Makeshift Shrapnel Gun > --- INVENTORY -------- Proton Bomb Trap Proton Bomb Trap [Rating: 13] Favorites ----------- Power None Propulsion Flight Unit Flight Unit Flight Unit Utility Thief Drone Bay Device Thief Drone Bay Weapon Makeshift Shrapnel Gun Ballistic Gun Makeshift Shrapnel Gun Build | -11 -10 -10 -9 -9 -9 -8 ------- Run | Yrd Mat Min Mat Min Exi Min Slots Evolved 1 | . . 1 . . . . Power . | . . . . . . . Propulsion 1 | . . 1 . . . . Utility . | . . . . . . . Weapon . | . . . . . . . Parts Attached 5 | . . 5 . . . . Power . | . . . . . . . Engine . | . . . . . . . Core . | . . . . . . . Reactor . | . . . . . . . Propulsion 2 | . . 2 . . . . Treads . | . . . . . . . Leg . | . . . . . . . Wheel . | . . . . . . . Hover . | . . . . . . . Flight 2 | . . 2 . . . . Utility 2 | . . 2 . . . . Device 2 | . . 2 . . . . Storage . | . . . . . . . Processor . | . . . . . . . Hackware . | . . . . . . . Protection . | . . . . . . . Artifact . | . . . . . . . Weapon 1 | . . 1 . . . . Energy Gun . | . . . . . . . Energy Cannon . | . . . . . . . Ballistic Gun 1 | . . 1 . . . . Ballistic Cannon . | . . . . . . . Launcher . | . . . . . . . Special Weapon . | . . . . . . . Impact Weapon . | . . . . . . . Slashing Weapon . | . . . . . . . Piercing Weapon . | . . . . . . . Special Melee Weapon . | . . . . . . . Unidentified Prototypes 2 | . . 2 . . . . Corrupted Parts 2 | . . 2 . . . . System Corruption 7 | . . 7 . . . . Parts Lost 1 | . . . . 1 . . Power . | . . . . . . . Propulsion 1 | . . . . 1 . . Utility . | . . . . . . . Weapon . | . . . . . . . Highest Loss Streak 1 | . . . . 1 . . To Critical Strikes . | . . . . . . . Average Backups . | . . . . . . . Power . | . . . . . . . Propulsion . | . . . . . . . Utility . | . . . . . . . Weapon . | . . . . . . . Tool/Special . | . . . . . . . Unused Backups . | . . . . . . . Power . | . . . . . . . Propulsion . | . . . . . . . Utility . | . . . . . . . Weapon . | . . . . . . . Tool/Special . | . . . . . . . Average Slot Usage (%) 62 | . . 32 80 78 60 60 Flight 31 | . . 25 40 38 20 20 Device 15 | . . 5 20 20 20 20 Ballistic Gun 15 | . . 2 20 20 20 20 Peak Build Rating 13 | . . 13 13 13 12 12 Average Rating 10 | . . 3 13 12 12 12 On Entrance 7 | . . . 13 13 12 12 Avg Prop Armor Cover (%) 13 | . . 13 . . . . Naked Turns 80 | . 21 59 . . . . Heaviest Build 6 | . . 6 6 6 6 6 Greatest Support 9 | 3 3 8 8 9 9 9 Greatest Overweight (x) . | . . . . . . . Average Overweight (x) . | . . . . . . . Largest Inventory Capacity 3 | . . 3 3 3 3 3 Average Capacity 2 | . . 2 3 3 3 3 Most Carried 3 | . . 3 2 2 2 2 Average Carried 1 | . . 1 2 2 2 2 Final Capacity 3 | . . 3 3 3 3 3 Final Carried 2 | . . 2 2 2 2 2 Class Distribution -------------------- 100% | Mutant Dominant Class ---------------- Mutant | -10/Materials Mutant | -10/Mines Mutant | -9/Materials Mutant | -9/Mines Mutant | -9/Exiles Mutant | -8/Mines Resources | -11 -10 -10 -9 -9 -9 -8 ----------- Run | Yrd Mat Min Mat Min Exi Min Matter Collected 215 | . . 36 . 179 . . Remotely . | . . . . . . . Salvage Created . | . . . . . . . Parts . | . . . . . . . Haulers Intercepted . | . . . . . . . Recyclers Shooed . | . . . . . . . Parts Field Recycled . | . . . . . . . Retrieved Matter . | . . . . . . . Parts Self-Destructed . | . . . . . . . Prevented . | . . . . . . . Parts Restored . | . . . . . . . Kills | -11 -10 -10 -9 -9 -9 -8 ------- Run | Yrd Mat Min Mat Min Exi Min Combat Hostiles Destroyed . | . . . . . . . Classes Destroyed . | . . . . . . . Best Kill Streak . | . . . . . . . Combat Bots Only . | . . . . . . . Max Kills in Single Turn . | . . . . . . . Gunslinging . | . . . . . . . Exploded . | . . . . . . . Melee . | . . . . . . . Uniques/NPCs Destroyed . | . . . . . . . Combat | -11 -10 -10 -9 -9 -9 -8 -------- Run | Yrd Mat Min Mat Min Exi Min Hostile Shots Fired 65 | . . 18 17 30 . . Missed 27 | . . 5 13 9 . . Hits 38 | . . 13 4 21 . . Melee 2 | . . . . 2 . . Projectile 36 | . . 13 4 19 . . Critical Strikes 1 | . . . . 1 . . Damage Taken 405 | 5 . 110 44 246 . . Core 352 | 5 . 108 36 203 . . Absorbed by Shields . | . . . . . . . Redirected to Core 180 | . . 8 26 146 . . Core Remaining (%) 90 | 99 . 81 . . . . Volleys Fired 2 | . . . . . 2 . Largest 1 | . . . . . 1 . Hottest 24 | . . . . . 24 . Shots Fired 2 | . . . . . 2 . Gun 2 | . . . . . 2 . Cannon . | . . . . . . . Launcher . | . . . . . . . Special . | . . . . . . . Kinetic 2 | . . . . . 2 . Thermal . | . . . . . . . Explosive . | . . . . . . . Electromagnetic . | . . . . . . . Robot Hit Streak . | . . . . . . . Robot Miss Streak . | . . . . . . . Penetration Max . | . . . . . . . Secondary Targets . | . . . . . . . Shots Hit Robots . | . . . . . . . Core Hits 2 | . . 2 . . . . Critical Kills . | . . . . . . . Critical Parts Destroyed . | . . . . . . . Critical Strikes . | . . . . . . . Melee Attacks . | . . . . . . . Impact . | . . . . . . . Slashing . | . . . . . . . Piercing . | . . . . . . . Sneak Attacks . | . . . . . . . Combat Hostiles . | . . . . . . . Follow-up Attacks . | . . . . . . . Damage Inflicted 23 | 12 . 11 . . . . Guns . | . . . . . . . Cannons . | . . . . . . . Explosions . | . . . . . . . Melee . | . . . . . . . Ramming 23 | 12 . 11 . . . . Kinetic . | . . . . . . . Thermal . | . . . . . . . Explosive . | . . . . . . . Electromagnetic . | . . . . . . . Impact . | . . . . . . . Slashing . | . . . . . . . Piercing . | . . . . . . . Highest Corruption 9 | . . 9 . . . . Average Corruption 8 | . . 8 . . . . Corruption Purged . | . . . . . . . Corruption Blocked . | . . . . . . . Effects 4 | . . 4 . . . . Message Errors 2 | . . 2 . . . . Energy Discharges 2 | . . 2 . . . . Overload Shots . | . . . . . . . Overflow Damage . | . . . . . . . Projectiles . | . . . . . . . Explosions . | . . . . . . . Melee . | . . . . . . . Knockbacks . | . . . . . . . Impact . | . . . . . . . Kinetic . | . . . . . . . Secondary . | . . . . . . . Self-Inflicted Damage 9 | 5 . 4 . . . . Shots . | . . . . . . . Rammed 10 | 3 . 7 . . . . Targets Rammed 10 | 3 . 7 . . . . Kicked . | . . . . . . . Crushed . | . . . . . . . Highest Temperature 8 | . . . . 8 . . Average Temperature 8 | . . . . 8 . . Received Heat Transfer 69 | . . . . 69 . . Siege Activations . | . . . . . . . Martial Activations . | . . . . . . . Shielding Activations . | . . . . . . . Robots Disrupted . | . . . . . . . Combat Hostiles . | . . . . . . . Robots Corrupted . | . . . . . . . Combat Hostiles . | . . . . . . . Parts Fried . | . . . . . . . Impact Corruptions . | . . . . . . . Robots Melted . | . . . . . . . Combat Hostiles . | . . . . . . . Parts Melted . | . . . . . . . Heat Transferred . | . . . . . . . Parts Sabotaged . | . . . . . . . Parts Stolen . | . . . . . . . Parts Stripped . | . . . . . . . Power Chain Reactions . | . . . . . . . Alert | -11 -10 -10 -9 -9 -9 -8 ------- Run | Yrd Mat Min Mat Min Exi Min Maximum Alert Level . | . . . . . . . Low Security (%) 100 | 100 100 100 100 100 . 100 Level 1 . | . . . . . . . Level 2 . | . . . . . . . Level 3 . | . . . . . . . Level 4 . | . . . . . . . Level 5 . | . . . . . . . High Security . | . . . . . . . Max Security . | . . . . . . . Peak Influence 125 | . . 35 125 94 . . Initial 44 | . . . . 44 . . Average 27 | . . 11 42 34 . . Influence Increases 376 | . . 55 186 135 . . Destroy 0b10 Robot/C 40 | . . . 40 . . . Allied During Kill 3 | . . . 3 . . . Trap Triggered on 0b10 10 | . . 10 . . . . Successful Hack 8 | . . . 8 . . . Partial Spotted 15 | . . . . 15 . . Lose Combat Pursuer 300 | . . 45 135 120 . . Influence Decreases 376 | . . 55 71 250 . . Entered New Map 71 | . . . . 71 . . Time Decay 252 | . . 55 23 174 . . Lost Part 5 | . . . . 5 . . Lost Ally 48 | . . . 48 . . . Squads Dispatched 1 | . 1 . . . . . Investigation . | . . . . . . . Extermination . | . . . . . . . Reinforcement 1 | . 1 . . . . . Assault . | . . . . . . . Garrison . | . . . . . . . Intercept . | . . . . . . . Searches Triggered . | . . . . . . . Construction Impeded . | . . . . . . . Haulers Reinforced . | . . . . . . . Active Scanning Responses . | . . . . . . . Cargo Convoy Interrupts . | . . . . . . . Stealth | -11 -10 -10 -9 -9 -9 -8 --------- Run | Yrd Mat Min Mat Min Exi Min Distress Signals 1 | . . . 1 . . . Communications Jammed . | . . . . . . . Distress Signals . | . . . . . . . Times Spotted 30 | . 1 3 10 16 . . Peak Tracking Total 10 | . 1 3 8 6 10 . Tactical Retreats 9 | . . 2 2 4 1 . Traps | -11 -10 -10 -9 -9 -9 -8 ------- Run | Yrd Mat Min Mat Min Exi Min Traps Triggered . | . . . . . . . Indirectly . | . . . . . . . Trap Hack Attempts . | . . . . . . . Triggered . | . . . . . . . Disarmed . | . . . . . . . Reprogrammed . | . . . . . . . Reused 1 | . . 1 . . . . Traps Extracted . | . . . . . . . Installed 1 | . . 1 . . . . Triggered 1 | . . 1 . . . . Most Traps Carried 3 | . . 3 2 2 2 2 Machines | -11 -10 -10 -9 -9 -9 -8 ---------- Run | Yrd Mat Min Mat Min Exi Min Machines Disabled 1 | . . . . . 1 . Max in Single Turn 1 | . . . . . 1 . Machines Repaired . | . . . . . . . Machines Dismantled . | . . . . . . . Machines Sabotaged . | . . . . . . . Overloaded Fab Kills . | . . . . . . . Hacking | -11 -10 -10 -9 -9 -9 -8 --------- Run | Yrd Mat Min Mat Min Exi Min Machines Accessed 3 | . . 1 1 . 1 . Terminals 1 | . . . 1 . . . Fabricators . | . . . . . . . Repair Stations . | . . . . . . . Recycling Units . | . . . . . . . Scanalyzers . | . . . . . . . Garrison Access . | . . . . . . . Total Hacks 4 | . . 1 2 . 1 . Successful 3 | . . 1 1 . 1 . Failed 1 | . . . 1 . . . Catastrophic . | . . . . . . . Database Lockouts . | . . . . . . . Manual 3 | . . . 2 . 1 . Terminals 2 | . . . 2 . . . Fabricators . | . . . . . . . Repair Stations . | . . . . . . . Recycling Units . | . . . . . . . Scanalyzers . | . . . . . . . Garrison Access . | . . . . . . . Terminal Hacks 3 | . . 1 1 . 1 . Open Door 1 | . . 1 . . . . Branch Access Points 1 | . . . 1 . . . Proto ID Catalog 1 | . . . . . 1 . Fabricator Hacks . | . . . . . . . Repair Station Hacks . | . . . . . . . Recycling Unit Hacks . | . . . . . . . Scanalyzer . | . . . . . . . Garrison Access Hacks . | . . . . . . . Unauthorized Hacks . | . . . . . . . Terminals . | . . . . . . . Fabricators . | . . . . . . . Repair Stations . | . . . . . . . Recycling Units . | . . . . . . . Scanalyzers . | . . . . . . . Garrison Access . | . . . . . . . Data Cores Recovered . | . . . . . . . Used . | . . . . . . . Hacking Detections . | . . . . . . . Full Trace Events . | . . . . . . . Feedback Events . | . . . . . . . Feedback Blocked . | . . . . . . . Robot Schematics Acquired . | . . . . . . . Robots Built . | . . . . . . . Authchips . | . . . . . . . Time . | . . . . . . . Total Robot Build Rating . | . . . . . . . Part Schematics Acquired . | . . . . . . . Parts Built . | . . . . . . . Authchips . | . . . . . . . Time . | . . . . . . . Total Part Build Rating . | . . . . . . . Part Studies Acquired . | . . . . . . . Parts Repaired . | . . . . . . . Time . | . . . . . . . Parts Recycled . | . . . . . . . Recycled Matter . | . . . . . . . Retrieved Matter . | . . . . . . . Retrieved Components . | . . . . . . . Parts Scanalyzed . | . . . . . . . Part Schematics Acquired . | . . . . . . . Parts Damaged . | . . . . . . . Bothacking | -11 -10 -10 -9 -9 -9 -8 ------------ Run | Yrd Mat Min Mat Min Exi Min Used RIF Installer . | . . . . . . . Robots Hacked . | . . . . . . . Non-combat . | . . . . . . . Combat . | . . . . . . . Robot Hacks Applied . | . . . . . . . Relay Couplers Released . | . . . . . . . Fabnet Peak Effective % . | . . . . . . . Robots Rewired . | . . . . . . . Allies Hacked . | . . . . . . . Hacks Repelled . | . . . . . . . Allies | -11 -10 -10 -9 -9 -9 -8 -------- Run | Yrd Mat Min Mat Min Exi Min Total Allies 5 | . . 3 . 2 . . Largest Group 3 | . . 3 3 2 . . Highest-Rated Group 53 | . . 40 40 53 . . Highest-Rated Ally 31 | . . 16 16 31 . . Total Orders . | . . . . . . . Ally Attacks 9 | . . . 9 . . . Total Damage 44 | . . . 44 . . . Kills 2 | . . . 2 . . . Allies Corrupted . | . . . . . . . Allies Melted . | . . . . . . . Intel | -11 -10 -10 -9 -9 -9 -8 ------- Run | Yrd Mat Min Mat Min Exi Min Active Infowar (turns) 13 | . . 13 . . . . Sensors 13 | . . 13 . . . . Robot Analysis Total . | . . . . . . . Derelict Logs Recovered 3 | . . 1 . 2 . . Drone Launches . | . . . . . . . Drone Recoveries . | . . . . . . . Exploration | -11 -10 -10 -9 -9 -9 -8 ------------- Run | Yrd Mat Min Mat Min Exi Min Turns Passed 797 | 11 21 178 60 422 90 15 Spaces Moved 1380 | 16 42 346 162 564 215 35 Core 161 | 16 42 103 . . . . Treads . | . . . . . . . Legs . | . . . . . . . Wheels . | . . . . . . . Hover . | . . . . . . . Flight 1219 | . . 243 162 564 215 35 Fastest Speed 37 | 50 50 37 37 37 40 40 Average Speed 39 | 50 50 42 37 37 40 40 Slowest Speed 50 | 50 50 50 37 40 40 40 Overloaded Moves . | . . . . . . . Propulsion Burnouts . | . . . . . . . Robots Hopped 15 | . . 1 1 13 . . Potential Cave-ins . | . . . . . . . Cave-ins Triggered . | . . . . . . . Exploration Rate (%) 40 | 3 18 75 26 85 64 10 Regions Visited 6 Branch Regions 4 Pre-discovered Areas . | . . . . . . . Known Exits Taken 1 | . . . 1 . . . Unknown Exits Taken 5 | 1 1 1 . 1 1 . Scrap Searched 1 | . . . . 1 . . Spaces Dug . | . . . . . . . Terrain Destroyed . | . . . . . . . Melee . | . . . . . . . Projectile . | . . . . . . . AOE . | . . . . . . . Terrain Rammed . | . . . . . . . Walls Destroyed . | . . . . . . . Machines Disabled . | . . . . . . . Actions | -11 -10 -10 -9 -9 -9 -8 --------- Run | Yrd Mat Min Mat Min Exi Min Total 1603 | 18 41 373 160 760 216 35 Wait 222 | . . 12 . 210 . . Move 1346 | 16 41 343 159 538 214 35 Hop 14 | . . 1 1 12 . . Pick Up 3 | . . 3 . . . . Fast Attach 4 | . . 4 . . . . Attach . | . . . . . . . Detach . | . . . . . . . Swap 1 | . . 1 . . . . Drop 1 | . . 1 . . . . Fire 2 | . . . . . 2 . Melee . | . . . . . . . Ram 9 | 2 . 7 . . . . Kick . | . . . . . . . Crush . | . . . . . . . Escape Stasis . | . . . . . . . Rewire . | . . . . . . . Trap 1 | . . 1 . . . . Miscellaneous . | . . . . . . . Route ------- -11/Scrapyard -10/Materials -10/Mines -9/Materials -9/Mines (discovered 3 exits: [*Mat] / *Exi / [*Zio]) -9/Exiles -8/Mines History --------- Turn | Location | Event 3 | -11/Scrapyard | Discovered new exit (range 15) 12 | -11/Scrapyard | Entered Materials 28 | -10/Materials | Discovered new exit (range 11) 33 | -10/Materials | Entered Mines 55 | -10/Mines | Found a hidden stash of uninstalled traps 75 | -10/Mines | Upgraded with Propulsion slot (x1) 131 | -10/Mines | Learned Materials garrison access intel 140 | -10/Mines | Assisted by bots powering up and referring to "LRC-V3" 167 | -10/Mines | Found a damaged Exp. Sensor Array with a note attached 169 | -10/Mines | Found Prototype Device 169 | -10/Mines | Identified Exp. Sensor Array 174 | -10/Mines | Discovered new exit (range 7) 180 | -10/Mines | Found the Drone Emporium 182 | -10/Mines | Found Prototype Device 182 | -10/Mines | Identified Thief Drone Bay 191 | -10/Mines | A weapon hastily lodged in a ceiling crevice suddenly fell to the ground 211 | -10/Mines | Entered Materials 211 | -9/Materials | Accompanied by 3 allies 213 | -9/Materials | Reached level 2 238 | -9/Materials | Identified exit to Mines 271 | -9/Materials | Entered Mines 283 | -9/Mines | Learned Materials security intel 309 | -9/Mines | Build established: Mutant 313 | -9/Mines | Learned 8 Materials zone layouts 314 | -9/Mines | Discovered new exit (range 6) 349 | -9/Mines | A Derelict revealed a hidden shortcut to a safe place 389 | -9/Mines | Assembled infested the area 652 | -9/Mines | Core integrity fell below 50% 691 | -9/Mines | Deemed a non-threat by the Exiles lab entrance 691 | -9/Mines | Discovered new exit (range 5) 693 | -9/Mines | Entered Exiles 695 | -9/Exiles | Reached level 3 704 | -9/Exiles | Met 8R-AWN 710 | -9/Exiles | Met EX-HEX 722 | -9/Exiles | Met EX-BIN 728 | -9/Exiles | Aligned with FarCom system 728 | -9/Exiles | Given EX-Vault access code 737 | -9/Exiles | Opened EX-Vault 748 | -9/Exiles | Warned to stay clear of 0b10 Research branches 758 | -9/Exiles | Met EX-DEC 768 | -9/Exiles | Attacked by the Exiles 780 | -9/Exiles | Discovered new exit (range 11) 783 | -9/Exiles | Entered Mines 798 | -8/Mines | Self-destructed Last Messages --------------- Field Lobotomy Kit Longsword +1 Deploy-a-Sentry EX-BIN: Oh yeah, I'd suggest you stay away from the 0b10 Research branches, since the FarCom signals could be picked up there, but you're welcome to try if you really want to. And if we have to leave here due to unforeseen circumstances, don't worry the FarCom system will continue to maintain contact via our distributed network. EX-DEC: Ah I see we have a visitor. One wrong move in here and I'll invert your atomic chain! 00760_ EX-DEC: "Oops, I hope HEX didn't hear that..." 00767_ Machine disabled. 00768_ EXILES: Hostile robot within lab perimeter. Defensive protocols time, folks! 00770_ EX-DEC: "Let's see what this bad boy can do..." 00780_ EXIT=FOUND LOCATION=UNKNOWN GOAL=ESCAPE 00790_ T-07 Excavator is excavating. Map ----- +----------------------------------------------------+ | | | | | ???????????????????????????????????????? | | ???????????????????????????????????????? | | ???????????????????????????????????????? | | ???????????????????????????????????????? | | ???????????????????????????????????????? | | ???????????????????????????????????????? | | ???????????????????????????????????????? | | ???????????????????????????????????????? | | ???????????????????????????????????????? | | ???????????????????????????????????????? | | ???????????????????????????????????????? | | ???????????????????????????????????????? | | ???????????????????????????????????????? | | ???????????????????????????????????????? | | ??????????####?????????????????????????? | | ?????????## ##????????????????????????? | | ?????????# #????????????????????????? | | ?????????# #????????????????????????? | | ?????????# #????????????????????????? | | ??????????# ##????####???????????????? | | ??# ####### #??### ###???#?????????? | | ??# #### ### #?????????? | | ??# ## #?????????? | | ??########## @ t #?????????? | | ???????????# ## ### #?????????? | | ???????##### ######?????????????? | | ??????##% ### ####??????????????????? | | ??????# ### ##?????????????????????? | | ??????#= ## #??????????????????????? | | ??????# % = #####??????????????????? | | ?????## #??????????????????? | | ?????# # ####### #??????????????????? | | ????# ## #??????????????????????????? | | ????##* ### #??????????????????????????? | | ?????####?# ??????????????????????????? | | ??????????###??????????????????????????? | | ???????????????????????????????????????? | | ???????????????????????????????????????? | | ???????????????????????????????????????? | | ???????????????????????????????????????? | | ???????????????????????????????????????? | | ???????????????????????????????????????? | | ???????????????????????????????????????? | | ???????????????????????????????????????? | | ???????????????????????????????????????? | | ???????????????????????????????????????? | | ???????????????????????????????????????? | | ???????????????????????????????????????? | +----------------------------------------------------+ Best States ------------- Heat Dissipation 25 Energy Generation 5 Energy Capacity 100 Matter Stores 300 Matter Capacity 300 Sight Range 16 Robot Scan Range 20 Terrain Scan Density 10 Evasion (%) 62 Item Schematics ----------------- None Robot Schematics ------------------ None Fabricated ------------ Nothing Repaired ---------- Nothing Studied --------- None Alien Tech Used ----------------- None Achievements -------------- None Challenges ------------ None RPGLIKE | -11 -10 -10 -9 -9 -9 -8 --------- Run | Yrd Mat Min Mat Min Exi Min Levels Raised 2 | . . . 1 . 1 . XP Earned 6743 | 3000 . 650 1743 500 350 500 XP Spent 2100 | . . 2000 . 100 . . Upgrades 5 | . . 4 . 1 . . Propulsion Slot 1 | . . 1 . . . . Mass Support 1 | . . . . 1 . . Inventory Capacity 3 | . . 3 . . . . Protomatter Created . | . . . . . . . Protomatter Decayed 115 | . . . 81 34 . . Game ------ Seed LegGaussMatterbank Manual? 0 Play Time 00:05:28 Cumulative 667.0 hours Start 2026.07.16 @ 07:29:05 End 2026.07.16 @ 07:34:28 Sessions 1 Manual Loads 0 Difficulty Rogue Special Mode Winter2019/RPGLIKE Game No. 306 Rogue 152 Adventurer 154 Explorer 0 Win Type - Total 22 Types 4/5/4/3/2/1/0/1/1/1 Lore% 95 Gallery% 88 Achievement% 68 Wizard Run 0 Options --------- Layout 0 ASCII 0 Keyboard 0 Movement Numpad Keybinds 0 Fullscreen 2 Font 18/SmallcapsGlow Map View 76x50 Zoom Use 0% Tactical HUD 1 Map Filters NONE Filters NONE Steam 1 RUN: 659abf99-130e-4d19-a107-b6ea389fed43